fUSD/lending_fUSD_20240628
["ID","MTS","AMOUNT","RATE_DAILY","PERIOD"]
[330553623,1719563444858,-705.93,0.00019178,2]
[330553624,1719563444869,-500.0,0.00019178,2]
[330553625,1719563444879,-514.34,0.00019178,2]
[330553626,1719563444890,-2944.16,0.00019178,2]
[330553627,1719563444900,-500.0,0.00019178,2]
[330553628,1719563444910,-500.0,0.00019178,2]
[330553629,1719563444920,-2749.91,0.00019178,2]
[330553630,1719563444930,-500.0,0.00019178,2]
[330553631,1719563444941,-747.14,0.00019178,2]
[330553632,1719563444951,-500.0,0.00019178,2]
[330553633,1719563444961,-500.0,0.00019178,2]
[330553634,1719563444971,-928.26,0.00019178,2]
[330553635,1719563444981,-500.0,0.00019178,2]
[330553636,1719563444991,-500.0,0.00019178,2]
[330553637,1719563445000,-500.0,0.00019178,2]
[330553638,1719563445009,-500.0,0.00019178,2]
[330553639,1719563445018,-500.0,0.00019178,2]
[330553640,1719563445027,-169.43084658,0.00019178,2]
[330553641,1719563445037,-747.44,0.00019178,2]
[330553642,1719563445046,-500.0,0.00019178,2]
[330553643,1719563445055,-1476.39,0.00019178,2]
[330553644,1719563445065,-500.0,0.00019178,2]
[330553645,1719563445074,-1274.27,0.00019178,2]
[330553646,1719563445083,-1806.96,0.00019178,2]
[330553647,1719563445092,-501.86251722,0.00019178,2]
[330553648,1719563445102,-1161.2,0.00019178,2]
[330553649,1719563445111,-1577.84,0.00019178,2]
[330553650,1719563445122,-500.0,0.00019178,2]
[330553651,1719563445132,-500.0,0.00019178,2]
[330553652,1719563445142,-1306.03,0.00019178,2]
[330553653,1719563445151,-1305.8,0.00019178,2]
[330553654,1719563445160,-887.65,0.00019178,2]
[330553655,1719563445171,-500.0,0.00019178,2]
[330553656,1719563445180,-500.0,0.00019178,2]
[330553657,1719563445189,-1665.1,0.00019178,2]
[330553658,1719563445199,-556.21,0.00019178,2]
[330553659,1719563445209,-706.13,0.00019178,2]
[330553660,1719563445218,-500.0,0.00019178,2]
[330553661,1719563445229,-500.0,0.00019178,2]
[330553662,1719563445239,-500.0,0.00019178,2]
[330553663,1719563445251,-500.0,0.00019178,2]
[330553664,1719563445261,-183.63799809,0.00019178,2]
[330553665,1719563445270,-500.0,0.00019178,2]
[330553666,1719563445279,-781.77,0.00019178,2]
[330553667,1719563445288,-1036.82,0.00019178,2]
[330553668,1719563445297,-3893.62,0.00019178,2]
[330553669,1719563445307,-500.0,0.00019178,2]
[330553670,1719563445317,-500.0,0.00019178,2]
[330553671,1719563445326,-500.0,0.00019178,2]
[330553672,1719563445336,-587.19,0.00019178,2]
[330553673,1719563445345,-500.0,0.00019178,2]
[330553674,1719563445355,-500.0,0.00019178,2]
[330553675,1719563445364,-549.64,0.00019178,2]
[330553676,1719563445374,-500.0,0.00019178,2]
[330553677,1719563445385,-2004.43,0.00019178,2]
[330553678,1719563445394,-542.0,0.00019178,2]
[330553679,1719563445402,-500.0,0.00019178,2]
[330553680,1719563445412,-500.0,0.00019178,2]
[330553681,1719563445422,-500.0,0.00019178,2]
[330553682,1719563445431,-500.0,0.00019178,2]
[330553683,1719563445440,-500.0,0.00019178,2]
[330553684,1719563445450,-500.0,0.00019178,2]
[330553685,1719563445460,-1043.47,0.00019178,2]
[330553686,1719563445469,-564.93989895,0.00019178,2]
[330553687,1719563445479,-500.0,0.00019178,2]
[330553688,1719563445489,-534.61,0.00019178,2]
[330553689,1719563445499,-1187.53,0.00019178,2]
[330553690,1719563445508,-500.0,0.00019178,2]
[330553691,1719563445518,-1090.14,0.00019178,2]
[330553692,1719563445526,-500.0,0.00019178,2]
[330553693,1719563445536,-500.0,0.00019178,2]
[330553694,1719563445546,-500.0,0.00019178,2]
[330553695,1719563445561,-500.0,0.00019178,2]
[330553696,1719563445568,-5311.37,0.00019178,2]
[330553697,1719563445577,-500.0,0.00019178,2]
[330553698,1719563445587,-500.0,0.00019178,2]
[330553699,1719563445596,-500.0,0.00019178,2]
[330553700,1719563445605,-500.0,0.00019178,2]
[330553701,1719563445614,-500.0,0.00019178,2]
[330553702,1719563445623,-500.0,0.00019178,2]
[330553703,1719563445635,-851.95,0.00019178,2]
[330553704,1719563445645,-500.0,0.00019178,2]
[330553705,1719563445654,-500.0,0.00019178,2]
[330553706,1719563445664,-500.0,0.00019178,2]
[330553707,1719563445673,-1281.26,0.00019178,2]
[330553708,1719563445683,-633.45,0.00019178,2]
[330553709,1719563445692,-747.0,0.00019178,2]
[330553710,1719563445702,-500.0,0.00019178,2]
[330553711,1719563445711,-1442.55,0.00019178,2]
[330553712,1719563445720,-500.0,0.00019178,2]
[330553713,1719563445734,-500.0,0.00019178,2]
[330553714,1719563445743,-688.24,0.00019178,2]
[330553715,1719563445753,-500.0,0.00019178,2]
[330553717,1719563445762,-500.0,0.00019178,2]
[330553718,1719563445772,-1023.28,0.00019178,2]
[330553719,1719563445975,-2340.94,0.00019178,2]
[330553720,1719563445986,-500.0,0.00019178,2]
[330553721,1719563445995,-500.0,0.00019178,2]
[330553722,1719563446005,-500.0,0.00019178,2]
[330553723,1719563446015,-500.0,0.00019178,2]
[330553724,1719563446025,-500.0,0.00019178,2]
[330553725,1719563446036,-500.0,0.00019178,2]
[330553726,1719563446046,-727.97,0.00019178,2]
[330553727,1719563446056,-500.0,0.00019178,2]
[330553728,1719563446068,-1487.9,0.00019178,2]
[330553729,1719563446077,-500.0,0.00019178,2]
[330553730,1719563446087,-1521.31,0.00019178,2]
[330553731,1719563446096,-500.0,0.00019178,2]
[330553732,1719563446106,-4354.86,0.00019178,2]
[330553733,1719563446116,-211.08065562,0.00019178,2]
[330553734,1719563446158,-288.91934438,0.00019178,2]
[330553735,1719563446167,-796.50099047,0.00019178,2]
[330553736,1719563446184,-72.53900953,0.00019178,2]
[330553737,1719563446195,-312.48012016,0.00019178,2]
[330553738,1719563446207,-1111.46103322,0.00019178,2]
[330553739,1719563446220,-363.6,0.00019178,2]
[330553740,1719563446233,-32.56884662,0.00019178,2]
[330553741,1719563446242,-500.0,0.00019178,2]
[330553742,1719563446252,-500.0,0.00019178,2]
[330553743,1719563446262,-1191.0,0.00019178,2]
[330553744,1719563446272,-500.0,0.00019178,2]
[330553745,1719563446282,-500.0,0.00019178,2]
[330553746,1719563446291,-500.0,0.00019178,2]
[330553747,1719563446301,-500.0,0.00019178,2]
[330553748,1719563446310,-500.0,0.00019178,2]
[330553749,1719563446320,-500.0,0.00019178,2]
[330553750,1719563446329,-1362.43,0.00019178,2]
[330553751,1719563446338,-500.0,0.00019178,2]
[330553752,1719563446349,-500.0,0.00019178,2]
[330553753,1719563446361,-237.73804771,0.00019178,2]
[330553754,1719563446379,-1124.69195229,0.00019178,2]
[330553755,1719563446389,-1362.43,0.00019178,2]
[330553756,1719563446399,-500.0,0.00019178,2]
[330553757,1719563446409,-740.84,0.00019178,2]
[330553758,1719563446418,-1362.43,0.00019178,2]
[330553759,1719563446428,-519.55,0.00019178,2]
[330553760,1719563446437,-1362.43,0.00019178,2]
[330553761,1719563446447,-1718.83,0.00019178,2]
[330553762,1719563446456,-1362.43,0.00019178,2]
[330553763,1719563446466,-1362.43,0.00019178,2]
[330553764,1719563446477,-874.36,0.00019178,2]
[330553765,1719563446487,-500.0,0.00019178,2]
[330553766,1719563446496,-1362.43,0.00019178,2]
[330553767,1719563446505,-500.0,0.00019178,2]
[330553768,1719563446514,-500.0,0.00019178,2]
[330553769,1719563446524,-500.0,0.00019178,2]
[330553771,1719563446534,-500.0,0.00019178,2]
[330553773,1719563446545,-500.0,0.00019178,2]
[330553775,1719563446561,-500.0,0.00019178,2]
[330553777,1719563446570,-974.56,0.00019178,2]
[330553779,1719563446579,-500.0,0.00019178,2]
[330553781,1719563446591,-506.49859784,0.00019178,2]
[330553783,1719563446600,-500.0,0.00019178,2]
[330553785,1719563446609,-500.0,0.00019178,2]
[330553787,1719563446618,-4911.38,0.00019178,2]
[330553788,1719563446629,-548.48112142,0.00019178,2]
[330553789,1719563446640,-500.0,0.00019178,2]
[330553790,1719563446650,-940.4,0.00019178,2]
[330553791,1719563446661,-500.0,0.00019178,2]
[330553792,1719563446672,-970.95,0.00019178,2]
[330553793,1719563446683,-1651.43,0.00019178,2]
[330553794,1719563446692,-1068.96,0.00019178,2]
[330553795,1719563446703,-500.0,0.00019178,2]
[330553796,1719563446713,-500.0,0.00019178,2]
[330553797,1719563446724,-500.0,0.00019178,2]
[330553798,1719563446734,-500.0,0.00019178,2]
[330553799,1719563446743,-2803.45,0.00019178,2]
[330553800,1719563446753,-500.0,0.00019178,2]
[330553801,1719563446764,-500.0,0.00019178,2]
[330553802,1719563446774,-695.95,0.00019178,2]
[330553803,1719563446783,-500.0,0.00019178,2]
[330553804,1719563446792,-954.57,0.00019178,2]
[330553805,1719563446802,-3131.43,0.00019178,2]
[330553806,1719563446811,-924.36,0.00019178,2]
[330553807,1719563446821,-647.42,0.00019178,2]
[330553808,1719563446830,-500.0,0.00019178,2]
[330553809,1719563446840,-1431.52,0.00019178,2]
[330553810,1719563446850,-843.24,0.00019178,2]
[330553811,1719563446859,-500.0,0.00019178,2]
[330553812,1719563446869,-500.0,0.00019178,2]
[330553813,1719563446890,-1985.26,0.00019178,2]
[330553814,1719563446903,-500.0,0.00019178,2]
[330553815,1719563446914,-768.39,0.00019178,2]
[330553816,1719563446924,-2103.97,0.00019178,2]
[330553817,1719563446935,-500.0,0.00019178,2]
[330553818,1719563446946,-500.0,0.00019178,2]
[330553819,1719563446957,-991.92,0.00019178,2]
[330553820,1719563446968,-945.28,0.00019178,2]
[330553821,1719563446979,-500.0,0.00019178,2]
[330553822,1719563446991,-845.51,0.00019178,2]
[330553823,1719563447003,-500.0,0.00019178,2]
[330553824,1719563447014,-1389.27,0.00019178,2]
[330553825,1719563447025,-500.0,0.00019178,2]
[330553826,1719563447035,-797.92,0.00019178,2]
[330553827,1719563447046,-500.0,0.00019178,2]
[330553828,1719563447056,-500.0,0.00019178,2]
[330553829,1719563447067,-500.81164339,0.00019178,2]
[330553830,1719563447077,-1207.05,0.00019178,2]
[330553831,1719563447088,-1498.85,0.00019178,2]
[330553832,1719563447099,-500.0,0.00019178,2]
[330553833,1719563447109,-500.0,0.00019178,2]
[330553834,1719563447119,-500.0,0.00019178,2]
[330553835,1719563447129,-500.0,0.00019178,2]
[330553836,1719563447138,-500.0,0.00019178,2]
[330553837,1719563447147,-709.85,0.00019178,2]
[330553838,1719563447157,-1109.32,0.00019178,2]
[330553839,1719563447167,-500.0,0.00019178,2]
[330553840,1719563447176,-1866.23,0.00019178,2]
[330553841,1719563447186,-500.0,0.00019178,2]
[330553842,1719563447196,-500.0,0.00019178,2]
[330553843,1719563447206,-653.77,0.00019178,2]
[330553844,1719563447215,-500.0,0.00019178,2]
[330553845,1719563447225,-500.0,0.00019178,2]
[330553846,1719563447235,-1042.31114917,0.00019178,2]
[330553847,1719563447254,-481.75885083,0.00019178,2]
[330553848,1719563447265,-569.13,0.00019178,2]
[330553849,1719563447275,-18566.1,0.00019178,2]
[330553850,1719563447284,-6795.73,0.00019178,2]
[330553851,1719563447294,-500.0,0.00019178,2]
[330553852,1719563447304,-500.0,0.00019178,2]
[330553853,1719563447314,-500.0,0.00019178,2]
[330553854,1719563447323,-500.0,0.00019178,2]
[330553855,1719563447333,-500.0,0.00019178,2]
[330553856,1719563447343,-500.0,0.00019178,2]
[330553857,1719563447353,-500.0,0.00019178,2]
[330553858,1719563447363,-500.0,0.00019178,2]
[330553859,1719563447373,-500.0,0.00019178,2]
[330553860,1719563447384,-500.0,0.00019178,2]
[330553861,1719563447395,-500.0,0.00019178,2]
[330553862,1719563447404,-1067.69754846,0.00019178,2]
[330553863,1719563447511,-658.25,0.00019178,2]
[330553864,1719563447523,-12224.25245154,0.00019178,2]
[330553865,1719563447532,-575.62,0.00019178,2]
[330553866,1719563447543,-709.16,0.00019178,2]
[330553867,1719563447557,-518.54,0.00019178,2]
[330553868,1719563447569,-1852.61,0.00019178,2]
[330553869,1719563447579,-500.0,0.00019178,2]
[330553870,1719563447590,-648.74,0.00019178,2]
[330553871,1719563447600,-1028.02,0.00019178,2]
[330553872,1719563447610,-793.89,0.00019178,2]
[330553873,1719563447621,-500.0,0.00019178,2]
[330553874,1719563447635,-815.81,0.00019178,2]
[330553875,1719563447647,-1000.0,0.00019178,2]
[330553876,1719563447659,-500.0,0.00019178,2]
[330553877,1719563447670,-500.0,0.00019178,2]
[330553878,1719563447682,-500.0,0.00019178,2]
[330553879,1719563447692,-500.0,0.00019178,2]
[330553880,1719563447702,-500.0,0.00019178,2]
[330553881,1719563447712,-893.65631046,0.00019178,2]
[330553882,1719563447726,-366.17368954,0.00019178,2]
[330553883,1719563447737,-1001.51,0.00019178,2]
[330553884,1719563447748,-596.4,0.00019178,2]
[330553885,1719563447758,-917.41,0.00019178,2]
[330553886,1719563447770,-982.56,0.00019178,2]
[330553887,1719563447781,-500.0,0.00019178,2]
[330553888,1719563447792,-1474.1,0.00019178,2]
[330553889,1719563447803,-6336.04,0.00019178,2]
[330553890,1719563447814,-208.89901758,0.00019178,2]
[330553891,1719563450624,-251.86340709,0.00012994,2]
[330553892,1719563450638,-994.63474144,0.00012994,2]
[330553893,1719563450651,-525.69004743,0.00012994,2]
[330553894,1719563450663,-1643.04733533,0.00017408,2]
[330553895,1719563450676,-18.95266467,0.00017408,2]
[330553896,1719563450687,-155.32834952,0.00017999,2]
[330553897,1719563450698,-155.0,0.00018081,2]
[330553898,1719563450707,-352.90432574,0.00019069,2]
[330553899,1719563450718,-291.10098242,0.00019178,2]
[330553900,1719563450729,-52.64714394,0.00019178,2]
[330553901,1719563450742,-447.35285606,0.00019178,2]
[330553902,1719563450753,-500.0,0.00019178,2]
[330553903,1719563450762,-500.0,0.00019178,2]
[330553904,1719563450773,-500.0,0.00019178,2]
[330553905,1719563450783,-136.67988144,0.00019178,2]
[330553906,1719563450797,-363.32011856,0.00019178,2]
[330553907,1719563450807,-500.0,0.00019178,2]
[330553908,1719563450821,-1295.66309048,0.00019178,2]
[330553909,1719563450856,-712.08271485,0.00019178,2]
[330553910,1719563450879,-347.290002,0.00019178,2]
[330553911,1719563452071,-815.585,0.00017408,2]
[330553912,1719563452081,-980.24419267,0.00019178,2]
[330553913,1719563452090,-500.0,0.00019178,2]
[330553914,1719563452099,-500.0,0.00019178,2]
[330553915,1719563452109,-361.17996233,0.00019178,2]
[330553916,1719563452121,-138.82003767,0.00019178,2]
[330553917,1719563452132,-500.0,0.00019178,2]
[330553918,1719563452141,-351.72291762,0.00019178,2]
[330553919,1719563452151,-1200.74573102,0.00019178,2]
[330553920,1719563452163,-55.13426898,0.00019178,2]
[330553921,1719563452172,-500.0,0.00019178,2]
[330553922,1719563452181,-347.02717533,0.00019178,2]
[330553923,1719563452194,-152.97282467,0.00019178,2]
[330553924,1719563452203,-610.78,0.00019178,2]
[330553925,1719563452213,-500.0,0.00019178,2]
[330553926,1719563452222,-187.51151515,0.00019178,2]
[330553927,1719563452232,-500.0,0.00019178,2]
[330553928,1719563452242,-17.85386495,0.00019178,2]
[330553929,1719563452255,-482.14613505,0.00019178,2]
[330553930,1719563452265,-1600.52,0.00019178,2]
[330553931,1719563452275,-96.57316862,0.00019178,2]
[330553932,1719563452297,-403.42683138,0.00019178,2]
[330553933,1719563452307,-500.0,0.00019178,2]
[330553934,1719563452318,-36.20454174,0.00019178,2]
[330553935,1719563452360,-463.79545826,0.00019178,2]
[330553936,1719563452370,-500.0,0.00019178,2]
[330553937,1719563452380,-500.0,0.00019178,2]
[330553938,1719563452390,-500.0,0.00019178,2]
[330553939,1719563452400,-500.0,0.00019178,2]
[330553940,1719563452410,-500.0,0.00019178,2]
[330553941,1719563452420,-576.28221783,0.00019178,2]
[330553942,1719563452490,-363.07778217,0.00019178,2]
[330553943,1719563452499,-142.45337955,0.00019178,2]
[330553944,1719563452548,-644.40662045,0.00019178,2]
[330553945,1719563452561,-1011.76,0.00019178,2]
[330553946,1719563452572,-500.0,0.00019178,2]
[330553947,1719563452583,-927.37,0.00019178,2]
[330553948,1719563452592,-500.0,0.00019178,2]
[330553949,1719563452602,-1487.68,0.00019178,2]
[330553950,1719563452611,-272.97045037,0.00019178,2]
[330553951,1719563455294,-450.775,0.00017408,2]
[330553952,1719563455304,-1852.42,0.00018466,2]
[330553953,1719563455314,-394.00290071,0.00018919,2]
[330553954,1719563455324,-305.3305634,0.00018999,2]
[330553955,1719563455334,-227.02954963,0.00019178,2]
[330553956,1719563455347,-605.27,0.00019178,2]
[330553957,1719563455356,-615.74844196,0.00019178,2]
[330553958,1719563455459,-384.25155804,0.00019178,2]
[330553959,1719563455469,-803.23,0.00019178,2]
[330553960,1719563455479,-584.70663792,0.00019178,2]
[330553961,1719563455603,-540.50954562,0.00017134,2]
[330553962,1719563455619,-119.38545438,0.00017134,2]
[330553963,1719563455629,-405.66336208,0.00019178,2]
[330553964,1719563455642,-171.07729614,0.00019178,2]
[330553965,1719563520592,150.0,0.00010997,2]
[330553966,1719563520616,131.5182,0.00010997,2]
[330553967,1719563591000,150.0,0.00010997,2]
[330553968,1719563591024,150.0,0.00010997,2]
[330553969,1719563591048,150.0,0.00010997,2]
[330553970,1719563591069,150.0,0.00010997,2]
[330553971,1719563591092,150.0,0.00010997,2]
[330553972,1719563591113,150.0,0.00010997,2]
[330553973,1719563591135,150.0,0.00010997,2]
[330553974,1719563591157,150.0,0.00010997,2]
[330553975,1719563591179,150.0,0.00010997,2]
[330553976,1719563591201,150.0,0.00010997,2]
[330553977,1719563591223,150.0,0.00010997,2]
[330553978,1719563591243,150.0,0.00010997,2]
[330553979,1719563591265,150.0,0.00010997,2]
[330553980,1719563591288,150.0,0.00010997,2]
[330553981,1719563591309,150.0,0.00010997,2]
[330553982,1719563591330,150.0,0.00010997,2]
[330553983,1719563591351,150.0,0.00010997,2]
[330553984,1719563591373,150.0,0.00010997,2]
[330553985,1719563591398,150.0,0.00010997,2]
[330553986,1719563591419,150.0,0.00010997,2]
[330553987,1719563591442,150.0,0.00010997,2]
[330553988,1719563592734,150.0,0.00010997,2]
[330553989,1719563592763,150.0,0.00010997,2]
[330553990,1719563592786,150.0,0.00010997,2]
[330553991,1719563592807,150.0,0.00010997,2]
[330553992,1719563592831,150.0,0.00010997,2]
[330553993,1719563592853,150.0,0.00010997,2]
[330553994,1719563592876,150.0,0.00010997,2]
[330553995,1719563592900,150.0,0.00010997,2]
[330553996,1719563592921,150.0,0.00010997,2]
[330553997,1719563592943,150.0,0.00010997,2]
[330553998,1719563592964,150.0,0.00010997,2]
[330553999,1719563592985,150.0,0.00010997,2]
[330554000,1719563593006,150.0,0.00010997,2]
[330554001,1719563593029,150.0,0.00010997,2]
[330554002,1719563593051,150.0,0.00010997,2]
[330554003,1719563593073,150.0,0.00010997,2]
[330554004,1719563593094,150.0,0.00010997,2]
[330554005,1719563593115,150.0,0.00010997,2]
[330554006,1719563593136,205.45143135,0.00010997,2]
[330554007,1719563593162,13759.89845775,0.00010997,2]
[330554008,1719563607508,174.68,0.00024921,120]
[330554009,1719563644896,758.24633682,0.00010997,2]
[330554010,1719563654408,585.63,0.00010959,2]
[330554011,1719563673172,4258.6062,6.94e-05,2]
[330554012,1719563738472,217.73001736,6.94e-05,2]
[330554014,1719563790531,944.60374233,8.412e-05,2]
[330554015,1719563830645,707.06499432,0.00010196,2]
[330554020,1719564281240,300.0,0.000225,30]
[330554023,1719564461398,704.08,0.0001101,2]
[330554024,1719564489569,253.08,0.00011021,2]
[330554060,1719564632030,-368.09381101,0.00011098,2]
[330554061,1719564632039,-499.67575362,0.00011098,2]
[330554062,1719564632049,-155.0,0.00011098,2]
[330554063,1719564632058,-269.64824773,0.00011098,2]
[330554064,1719564632068,-186.48816415,0.00011098,2]
[330554065,1719564632077,-450.32528097,0.00011098,2]
[330554066,1719564632086,-2351.59838139,0.00012359,2]
[330554067,1719564632096,-150.0,0.0001241,2]
[330554068,1719564632105,-250.0,0.00012446,2]
[330554069,1719564632115,-3974.65537,0.00012919,2]
[330554070,1719564632124,-2537.72,0.00012985,2]
[330554071,1719564632134,-162.48,0.00012985,2]
[330554072,1719564632143,-153.02,0.00013082,2]
[330554073,1719564632153,-153.02,0.00013131,2]
[330554074,1719564632163,-153.02,0.0001318,2]
[330554075,1719564632172,-150.0,0.00013205,2]
[330554076,1719564632181,-153.02,0.00013228,2]
[330554077,1719564632190,-150.0,0.00013229,2]
[330554078,1719564632200,-6783.29196397,0.0001323,2]
[330554079,1719564632211,-976.99928413,0.0001323,2]
[330554080,1719564632222,-540.396828,0.0001323,2]
[330554081,1719564632233,-399.20391486,0.0001323,2]
[330554082,1719564632258,-3540.04047111,0.0001323,2]
[330554083,1719564632269,-14342.54493793,0.0001323,2]
[330554084,1719564632278,-1220.77999921,0.0001323,2]
[330554085,1719564632290,-1826.53000079,0.0001323,2]
[330554086,1719564632299,-704.08,0.00013274,2]
[330554087,1719564632308,-321.29737364,0.00013274,2]
[330554088,1719564632319,-150.73175993,0.00013274,2]
[330554089,1719564632328,-153.02,0.00013277,2]
[330554090,1719564632337,-214.49,0.00013323,2]
[330554091,1719564632346,-153.02,0.00013326,2]
[330554092,1719564632356,-470037.57883962,0.00013329,2]
[330554093,1719564632366,-153.02,0.00013374,2]
[330554094,1719564632375,-171.65,0.00013381,2]
[330554095,1719564632384,-153.02,0.00013423,2]
[330554096,1719564632394,-153.02,0.00013472,2]
[330554097,1719564632404,-153.02,0.0001352,2]
[330554098,1719564632413,-153.02,0.00013569,2]
[330554099,1719564632424,-23900.0,0.00013573,2]
[330554101,1719564632433,-153.02,0.00013618,2]
[330554103,1719564632443,-168.51,0.00013638,2]
[330554105,1719564632453,-153.02,0.00013666,2]
[330554107,1719564632462,-736.81225318,0.00013691,2]
[330554109,1719564632472,-611.34,0.00013699,2]
[330554111,1719564632481,-10000.0,0.00013699,2]
[330554113,1719564632491,-734.09027284,0.00013699,2]
[330554115,1719564632500,-250.0,0.00013712,2]
[330554117,1719564632509,-153.02,0.00013715,2]
[330554118,1719564632519,-153.02,0.00013764,2]
[330554119,1719564632529,-6753.89800151,0.0001379,2]
[330554120,1719564632539,-1307.96454681,0.00013799,2]
[330554121,1719564632548,-168.12,0.00013842,2]
[330554122,1719564632557,-293.84383257,0.00013915,2]
[330554123,1719564632568,-170.52634442,0.00013988,2]
[330554124,1719564632577,-857.71608678,0.00013988,2]
[330554125,1719564632587,-237.84894069,0.0001399,2]
[330554126,1719564632596,-201181.85637662,0.00014,2]
[330554127,1719564632608,-3117.97,0.00014,2]
[330554128,1719564632620,-2212.0993828,0.00014,2]
[330554129,1719564632631,-29313.85132534,0.00014,2]
[330554130,1719564632642,-432.92,0.00014,2]
[330554275,1719564641420,-5604.22868825,0.00014,2]
[330554276,1719564641460,-870.60999909,0.00014,2]
[330554277,1719564641472,-915.87051958,0.00014,2]
[330554278,1719564641483,-1833.00086199,0.00014,2]
[330554279,1719564641494,-332.01572388,0.00014,2]
[330554280,1719564641614,-1568.29552831,0.00014,2]
[330554281,1719564641639,-586.61283492,0.00014,2]
[330554282,1719564641651,-97719.81286827,0.00014,2]
[330554283,1719564641662,-722.19529931,0.00014,2]
[330554308,1719564643160,-1202.82442801,0.00014,2]
[330554309,1719564643210,-2267.5,0.00014,2]
[330554310,1719564643222,-728.22246321,0.00014,2]
[330554311,1719564643234,-1220.00000001,0.00014,2]
[330554312,1719564643250,-6098.42493971,0.00014,2]
[330554313,1719564643386,-1029.21327798,0.00014,2]
[330554314,1719564643397,-621.77784,0.00014,2]
[330554315,1719564643526,-199440.01309666,0.00014,2]
[330554316,1719564643536,-837.52,0.00014089,2]
[330554317,1719564643545,-1307.96454679,0.00014169,2]
[330554318,1719564643554,-6753.89800146,0.00014266,2]
[330554319,1719564643564,-8098.0,0.00014429,2]
[330554320,1719564643574,-857.71608678,0.00014444,2]
[330554321,1719564643583,-7440.55474261,0.000145,2]
[330554322,1719564643593,-183.0,0.00014518,2]
[330554323,1719564643602,-168.12,0.00014535,2]
[330554324,1719564643612,-162.48,0.00014608,2]
[330554325,1719564643623,-857.71608678,0.000149,2]
[330554326,1719564643633,-150.73175993,0.00014999,2]
[330554327,1719564643642,-103458.36556976,0.00015,2]
[330554328,1719564643652,-3966.84701844,0.00015,2]
[330554329,1719564643662,-5000.0,0.00015,2]
[330554330,1719564643674,-734.09027283,0.00015044,2]
[330554331,1719564643684,-1307.96454679,0.00015056,2]
[330554332,1719564643695,-6753.89800146,0.00015142,2]
[330554333,1719564643705,-168.12,0.00015227,2]
[330554334,1719564643715,-704.08,0.00015538,2]
[330554335,1719564643725,-174.01351,0.00015616,2]
[330554336,1719564643734,-837.52,0.0001585,2]
[330554337,1719564643744,-168.12,0.00015919,2]
[330554338,1719564643753,-1307.96454679,0.00015944,2]
[330554339,1719564643763,-6753.89800146,0.00016017,2]
[330554340,1719564643773,-162.48,0.00016231,2]
[330554341,1719564643782,-734.09027283,0.00016389,2]
[330554342,1719564643791,-174.01351,0.00016438,2]
[330554343,1719564643801,-168.12,0.00016611,2]
[330554344,1719564643811,-150.73175993,0.00016724,2]
[330554345,1719564643822,-1307.96454679,0.00016831,2]
[330554346,1719564643831,-6753.89800146,0.00016892,2]
[330554347,1719564643841,-10000.0,0.00017077,2]
[330554349,1719564643850,-1272.0,0.00017134,2]
[330554351,1719564643860,-1830.0,0.00017134,2]
[330554353,1719564643870,-1655.0,0.00017134,2]
[330554355,1719564643879,-359.0,0.00017134,2]